bitfinex-derivatives/quotes_ETHF0:USTF0_20251117
["timestamp","ask_amount","ask_price","bid_price","bid_amount"]
[1763362953837,0.76756353,3194.7,3194.6,0.235]
[1763362954027,1.48276418,3194.7,3194.6,0.235]
[1763362954934,1.48578043,3194.7,3194.6,0.235]
[1763362955431,0.50755,3194.3,3194.2,0.00740747]
[1763362955630,5.60878231,3194.3,3194.2,0.00740747]
[1763362955824,6.32398296,3194.3,3194.2,0.00740747]
[1763362956627,5.19811418,3194.3,3194.2,0.00740747]
[1763362958022,5.19811418,3194.3,3194.2,0.24240747]
[1763362958226,5.19811418,3194.3,3194.2,0.00740747]
[1763362958531,5.19811418,3194.3,3194.2,0.24240747]
[1763362959536,6.32344675,3194.3,3194.2,0.24240747]
[1763362960331,6.32344675,3194.3,3194.2,0.00740747]
[1763362961633,6.32313142,3194.3,3194.2,0.00740747]
[1763362961931,5.81558142,3194.3,3194.2,0.24240747]
[1763362962131,5.81558142,3194.3,3194.2,0.00740747]
[1763362963125,5.04801789,3194.3,3194.2,0.24240747]
[1763362963327,3.92268532,3194.3,3194.2,0.24240747]
[1763362964426,0.71488532,3194.3,3194.2,0.24240747]
[1763362964622,0.76756353,3194.6,3194.5,0.3839]
[1763362964827,0.71467824,3194.6,3194.5,0.3839]
[1763362974241,0.51051625,3194.7,3194.6,0.2251]
[1763362974450,1.22490463,3194.7,3194.6,0.2251]
[1763362975945,4.43270463,3194.7,3194.6,0.2251]
[1763362976149,4.43270463,3194.7,3194.5,0.1489]
[1763362976443,0.71438838,3194.6,3194.5,0.1489]
[1763362977940,0.50755,3194.3,3194.2,0.00740747]
[1763362978144,1.98929469,3194.3,3194.2,0.00740747]
[1763362979439,1.48174469,3194.3,3194.2,0.23250747]
[1763362980742,1.48174469,3194.3,3194.2,0.00740747]
[1763362980952,4.68954469,3194.3,3194.2,0.00740747]
[1763362981149,4.68954469,3194.3,3194.2,0.23250747]
[1763362981339,4.68859078,3194.3,3194.2,0.23250747]
[1763362981542,4.68859078,3194.3,3194.2,0.00740747]
[1763362982142,4.68859078,3194.3,3194.2,0.23250747]
[1763362983546,4.68859078,3194.3,3194.2,0.00740747]
[1763362983754,4.68859078,3194.3,3194.2,0.23250747]
[1763362984753,4.68859078,3194.3,3194.2,0.00740747]
[1763362985452,1.48079078,3194.3,3194.2,0.00740747]
[1763362986248,1.48079078,3194.3,3194.2,0.23250747]
[1763362986745,1.48079078,3194.3,3194.2,0.00740747]
[1763362987541,2.60612335,3194.3,3194.2,0.00740747]
[1763362987947,1.83876704,3194.3,3194.2,0.00740747]
[1763362990158,0.71343447,3194.3,3194.2,0.00740747]
[1763362990359,0.71343447,3194.3,3194.2,0.23250747]
[1763362996061,0.71343447,3194.3,3194.2,0.00740747]
[1763362996467,0.71343447,3194.3,3194.2,0.23250747]
[1763362996862,0.71343447,3194.3,3194.2,0.00740747]
[1763362997667,0.71343447,3194.3,3194.2,0.23250747]
[1763362998460,0.71343447,3194.3,3194.2,0.00740747]
[1763362998656,0.71343447,3194.3,3194.2,0.24490747]
[1763362998860,0.71343447,3194.3,3194.2,0.00740747]
[1763363002766,1.83876704,3194.3,3194.2,0.00740747]
[1763363005168,0.71343447,3194.3,3194.2,0.00740747]
[1763363006274,0.71343447,3194.3,3194.2,7.47e-06]
[1763363006474,0.50757,3194.2,3194.0,1.1556]
[1763363006781,1.48079078,3194.1,3194.0,1.3931]
[1763363007571,1.48079078,3194.1,3194.0,1.3959358]
[1763363008977,1.625e-05,3194.7,3194.6,0.2375]
[1763363009276,0.00469021,3195.1,3195.0,0.3746]
[1763363010170,0.77499164,3195.1,3195.0,0.3746]
[1763363011576,3.98279164,3195.1,3195.0,0.1371]
[1763363011870,3.21543533,3195.1,3195.0,0.1371]
[1763363014980,3.21543533,3195.1,3195.0,0.3746]
[1763363015182,3.21543533,3195.1,3195.0,0.1371]
[1763363015969,3.21543533,3195.1,3194.5,0.1371]
[1763363016178,0.76735631,3194.6,3194.5,0.1371]
[1763363016882,1.27486631,3194.6,3194.5,0.1371]
[1763363017879,1.27486631,3194.6,3194.0,1.1584358]
[1763363017880,0.50757,3194.2,3194.0,1.1584358]
[1763363018070,0.76735631,3194.1,3194.0,1.1584358]
[1763363020781,1.47814626,3194.1,3194.0,1.1584358]
[1763363021886,1.47814626,3194.1,3194.0,1.0209358]
[1763363022085,2.605025,3194.1,3194.0,1.0209358]
[1763363022286,2.605025,3194.1,3194.0,1.1580358]
[1763363024793,0.50767,3193.6,3193.5,0.1375]
[1763363024996,5.25018262,3193.6,3193.5,0.1375]
[1763363025286,5.19361626,3193.6,3193.5,0.1375]
[1763363025789,5.19361626,3193.6,3193.5,0.14144745]
[1763363025987,5.96097257,3193.6,3193.5,0.14144745]
[1763363026787,5.19438835,3193.6,3193.5,0.14144745]
[1763363031309,3.91858995,3193.6,3193.5,0.37894745]
[1763363031503,4.68671835,3193.6,3193.5,0.37894745]
[1763363031695,1.47891835,3193.6,3193.5,0.37894745]
[1763363033405,1.47891835,3193.6,3193.5,0.14144745]
[1763363034506,1.47891835,3193.6,3193.5,0.38024745]
[1763363037313,3.9759284,3193.6,3193.5,0.14144745]
[1763363037510,4.68484275,3193.6,3193.5,0.14144745]
[1763363037712,5.45297115,3193.6,3193.5,0.14144745]
[1763363038106,0.50771,3193.3,3193.2,0.45017617]
[1763363038414,2.0439668,3193.3,3193.2,0.45017617]
[1763363039014,1.2758384,3193.3,3193.2,0.45017617]
[1763363039214,1.2758384,3193.3,3193.2,0.45370797]
[1763363039810,2.0439668,3193.3,3193.2,0.45370797]
[1763363040210,2.75303934,3193.3,3193.2,0.45370797]
[1763363040410,4.348352,3193.3,3193.2,0.45370797]
[1763363040615,0.50774,3193.1,3193.0,0.1371]
[1763363040817,5.19297024,3193.1,3193.0,0.1371]
[1763363041615,5.19297024,3193.1,3193.0,0.00287949]
[1763363041914,0.50782,3192.6,3192.5,0.1371]
[1763363042119,2.0440768,3192.6,3192.5,0.1371]
[1763363042419,0.7681284,3192.6,3192.5,0.3759]
[1763363042805,0.77163106,3192.6,3192.5,0.37922277]
[1763363045721,0.77163106,3192.6,3192.5,0.14042277]
[1763363047022,0.77163106,3192.6,3192.5,0.37922277]
[1763363047425,1.4847684,3192.6,3192.5,0.37922277]
[1763363047719,1.4847684,3192.6,3192.5,0.14042277]
[1763363048220,1.4847684,3192.6,3192.5,0.37922277]
[1763363049323,2.2528968,3192.6,3192.5,0.37922277]
[1763363050123,1.4847684,3192.6,3192.5,0.37922277]
[1763363050627,2.2528968,3192.6,3192.5,0.14042277]
[1763363051424,1.4847684,3192.6,3192.5,0.14042277]
[1763363051617,2.2528968,3192.6,3192.5,0.14042277]
[1763363051821,1.4847684,3192.6,3192.5,0.37922277]
[1763363052724,0.50798,3191.6,3191.1,1.68277236]
[1763363052930,0.50798,3191.6,3190.5,3.3444]
[1763363052931,5.4573678,3191.6,3190.5,3.3444]
[1763363053224,5.4573678,3191.6,3190.6,40.8]
[1763363053619,4.6892394,3191.6,3190.6,40.8]
[1763363053929,4.6892394,3191.6,3191.5,0.1390489]
[1763363054825,5.4573678,3191.6,3191.5,0.1390489]
[1763363055218,0.50805,3191.2,3190.5,3.3444]
[1763363055423,0.7681284,3191.1,3190.5,3.3444]
[1763363055830,2.2481522,3191.1,3190.5,3.3444]
[1763363056124,2.7562122,3191.1,3190.5,0.1366]
[1763363056319,1.2762684,3190.6,3190.5,0.1366]
[1763363056925,1.2762684,3190.6,3190.5,0.14059757]
[1763363057924,1.2762684,3190.6,3190.5,0.37939757]
[1763363058125,0.7681284,3190.6,3190.5,0.37939757]
[1763363058331,3.2078,3190.8,3190.7,0.2425]
[1763363058625,3.9759284,3190.8,3190.7,0.2425]
[1763363059031,4.7440568,3190.8,3190.7,0.2425]
[1763363059227,4.7440568,3190.8,3190.5,0.14059757]
[1763363059418,0.7681284,3190.6,3190.5,0.14059757]
[1763363059624,0.7681284,3190.6,3190.5,0.38159757]
[1763363060631,3.9759284,3190.8,3190.7,0.241]
[1763363064639,0.7728261,3191.4,3191.1,0.241]
[1763363064640,3.2078,3191.2,3191.1,0.241]
[1763363067244,1.2761684,3191.3,3191.2,0.241]
[1763363067935,1.2761684,3191.3,3191.0,0.1419]
[1763363068134,0.7681284,3191.1,3191.0,0.3829]
[1763363072039,0.7681284,3191.3,3191.2,0.241]
[1763363072842,0.50805,3191.2,3191.0,0.1419]
[1763363073042,0.7681284,3191.1,3191.0,0.1419]
[1763363073643,0.7681284,3191.1,3191.0,0.3829]
[1763363076447,0.50814,3190.6,3190.5,0.14059757]
[1763363076648,4.4840684,3190.6,3190.5,0.14059757]
[1763363077050,5.19565923,3190.6,3190.5,0.14059757]
[1763363077651,4.68751923,3190.6,3190.5,0.14059757]
[1763363077851,4.68751923,3190.6,3190.5,0.38159757]
[1763363080053,4.68751923,3190.6,3190.5,0.14059757]
[1763363081051,4.68751923,3190.6,3190.5,0.38159757]
[1763363081547,4.68751923,3190.6,3190.5,0.14059757]
[1763363084149,4.68751923,3190.6,3190.5,0.38159757]
[1763363084555,1.47971923,3190.6,3190.5,0.38159757]
[1763363084750,0.71159083,3190.6,3190.5,0.38159757]
[1763363085148,3.91939083,3190.6,3190.5,0.14059757]
[1763363086757,4.68882901,3190.6,3190.5,0.14059757]
[1763363088856,4.68882901,3190.6,3190.5,0.00399757]
[1763363089767,4.68882901,3190.6,3190.5,0.14209757]
[1763363091161,1.48102901,3190.6,3190.5,0.37739757]
[1763363092255,1.48102901,3190.6,3190.5,0.14209757]
[1763363093064,1.48102901,3190.6,3190.5,0.37739757]
[1763363095160,1.48102901,3190.6,3190.5,0.14209757]
[1763363097865,1.48102901,3190.6,3190.5,0.00399757]
[1763363098260,0.50819,3190.3,3190.2,0.8543]
[1763363098461,5.19701901,3190.3,3190.2,0.8543]
[1763363099265,5.2000966,3190.3,3190.2,0.85651719]
[1763363100666,4.6919066,3190.3,3190.2,0.85651719]
[1763363101069,4.6919066,3190.3,3190.2,1.09181719]
[1763363103678,4.6919066,3190.3,3190.2,0.85651719]
[1763363104873,4.6919066,3190.3,3190.2,1.09181719]
[1763363105372,5.81787958,3190.3,3190.2,1.09181719]
[1763363105873,5.81787958,3190.3,3190.2,0.85651719]
[1763363106771,5.81787958,3190.3,3190.2,0.00221719]
[1763363109572,5.81787958,3190.3,3190.2,0.23751719]
[1763363109976,5.81787958,3190.3,3190.2,0.00221719]
[1763363112981,2.61007958,3190.3,3190.2,0.00221719]
[1763363113181,5.81787958,3190.3,3190.2,0.00221719]
[1763363114174,5.0484414,3190.3,3190.2,0.23751719]
[1763363114781,5.0484414,3190.3,3190.2,0.00221719]
[1763363116085,5.81787958,3190.3,3190.2,0.23751719]
[1763363116273,5.0484414,3190.3,3190.2,0.23751719]
[1763363116474,3.92246842,3190.3,3190.2,0.23751719]
[1763363119288,0.71466842,3190.3,3190.2,0.23751719]
[1763363122585,0.00307759,3190.3,3190.2,0.23751719]
[1763363122787,3.2078,3190.7,3190.6,0.2386]
[1763363122982,3.92102782,3190.7,3190.6,0.2386]
[1763363123381,0.71322782,3190.7,3190.6,0.2386]
[1763363123579,1.89541116,3191.1,3190.5,0.1485]
[1763363123580,1.22116943,3191.0,3190.9,0.2386]
[1763363123875,0.71676277,3191.0,3190.9,0.2386]
[1763363124278,0.00368334,3191.0,3190.9,0.2386]
[1763363126487,0.00368334,3191.0,3190.5,0.1485]
[1763363126780,0.71676277,3191.0,3190.5,0.1485]
[1763363126987,1.22484277,3191.0,3190.9,0.2386]
[1763363127985,1.22484277,3191.0,3190.5,0.1485]
[1763363128186,0.71307943,3190.9,3190.5,0.1485]
[1763363128383,0.71307943,3190.9,3190.8,0.2386]
[1763363129184,0.71565315,3191.0,3190.9,0.2386]
[1763363129785,1.22373315,3191.0,3190.5,0.1485]
[1763363129990,0.71196981,3190.9,3190.8,0.2386]
[1763363130789,0.00368334,3191.0,3190.9,0.2386]
[1763363130990,0.72000744,3191.0,3190.9,0.2386]
[1763363131990,0.00368334,3191.0,3190.9,0.2386]
[1763363132184,0.72000744,3191.0,3190.9,0.2386]
[1763363132584,0.00368334,3191.0,3190.9,0.2386]
[1763363132888,1.48944562,3191.0,3190.9,0.2386]
[1763363135584,0.50809,3190.9,3190.5,0.1485]
[1763363135888,0.50811,3190.8,3190.7,0.2386]
[1763363136093,1.28121152,3191.0,3190.7,0.2386]
[1763363136290,0.71609507,3190.9,3190.7,0.2386]
[1763363136594,0.71609507,3190.9,3190.8,0.2386]
[1763363137091,0.77312152,3191.0,3190.9,0.2386]
[1763363137291,1.99731057,3191.0,3190.5,0.1485]
[1763363137594,1.28121152,3191.0,3190.5,0.1485]
[1763363137797,0.00368334,3191.0,3190.9,0.2386]
[1763363138892,0.71978956,3191.0,3190.9,0.2386]
[1763363140189,0.00368334,3191.0,3190.9,0.2386]
[1763363142795,0.71978956,3191.0,3190.9,0.2386]
[1763363144497,1.22787956,3191.0,3190.9,0.2386]
[1763363144701,1.22787956,3191.0,3190.7,3.2078]
[1763363145000,0.71610622,3190.9,3190.8,0.2386]
[1763363145396,0.00368334,3191.0,3190.9,0.2386]
[1763363145789,0.72052968,3191.0,3190.9,0.2386]
[1763363149400,0.0046977,3191.4,3191.3,0.2352]
[1763363149602,0.72214449,3191.4,3191.3,0.2352]
[1763363150405,0.72457149,3191.4,3191.3,0.2352]
[1763363151403,0.72457149,3191.4,3191.0,0.1391]
[1763363151404,0.50804,3191.3,3191.0,0.1391]
[1763363151602,0.76910706,3191.3,3191.2,0.2352]
[1763363152005,1.48666775,3191.3,3191.2,0.2352]
[1763363152311,0.71756069,3191.3,3191.2,0.2352]
[1763363152498,0.0071247,3191.4,3191.3,0.2352]
[1763363152499,0.72478926,3191.4,3191.3,0.2352]
[1763363160107,1.49389632,3191.4,3191.3,0.2352]
[1763363161903,0.50805,3191.2,3191.0,0.1391]
[1763363162109,1.49130156,3191.1,3191.0,0.1391]
[1763363162410,0.7221945,3191.1,3191.0,0.3743]
[1763363162713,0.72222805,3191.2,3191.1,0.2352]
[1763363164013,1.23028805,3191.2,3191.0,0.1391]
[1763363164210,1.49133511,3191.1,3191.0,0.3743]
[1763363166613,1.49133511,3191.1,3191.0,0.1391]
[1763363167521,1.49133511,3191.1,3191.0,0.3743]
[1763363167705,0.72222805,3191.1,3191.0,0.3743]
[1763363168613,0.72222805,3191.1,3191.0,0.1391]
[1763363171417,0.72222805,3191.1,3191.0,0.3743]
[1763363173207,1.23068784,3191.3,3191.2,0.2352]
[1763363174418,0.50805,3191.2,3191.0,0.1391]
[1763363174618,0.72264784,3191.1,3191.0,0.1391]
[1763363175325,0.72264784,3191.1,3191.0,0.3743]
[1763363175623,1.23080882,3191.3,3191.2,0.2352]
[1763363176116,0.50806,3191.1,3191.0,0.1391]
[1763363176323,1.23083882,3191.1,3191.0,0.3743]
[1763363177118,0.72277882,3191.1,3191.0,0.3743]
[1763363177323,0.50804,3191.3,3191.1,0.2352]
[1763363177617,0.72287027,3191.2,3191.1,0.2352]
[1763363177824,1.90220474,3191.4,3191.3,0.2401]
[1763363177825,0.5151447,3191.4,3191.3,0.2401]
[1763363178017,1.23796225,3191.4,3191.3,0.2401]
[1763363179022,1.23796225,3191.4,3191.0,0.1391]
[1763363179023,0.50804,3191.3,3191.0,0.1391]
[1763363179223,0.72281755,3191.2,3191.1,0.2341]
[1763363180918,1.23804219,3191.4,3191.3,0.2341]
[1763363183822,0.73002219,3191.4,3191.3,0.2341]
[1763363184032,0.0071247,3191.4,3191.3,0.2341]
[1763363186321,1.80274298,3192.2,3191.8,0.2341]
[1763363186524,0.72248225,3192.1,3192.0,0.3823]
[1763363186717,0.16887,3192.2,3192.1,0.2341]
[1763363187420,0.1712853,3192.2,3192.1,0.48565389]
[1763363187620,0.1712853,3192.2,3192.1,0.2341]
[1763363187825,0.1712853,3192.2,3192.1,1.00320706]
[1763363189428,0.1712853,3192.2,3192.1,1.26021803]
[1763363190223,0.0046977,3192.5,3192.4,0.2341]
[1763363190529,0.0046977,3192.5,3192.4,4.21100706]
[1763363191228,0.00796209,3192.5,3192.4,4.21100706]
[1763363195434,0.50775,3193.1,3193.0,0.3823]
[1763363195634,1.22667974,3193.1,3193.0,0.3823]
[1763363196332,1.22975328,3193.1,3193.0,0.38523907]
[1763363197428,0.72200328,3193.1,3193.0,0.38523907]
[1763363197734,0.00307354,3193.1,3193.0,0.38523907]
[1763363198141,0.7721806,3193.1,3193.0,0.15113907]
[1763363198634,7.49078271,3193.1,3193.0,3.907e-05]
[1763363199736,0.72167565,3193.1,3193.0,0.14823907]
[1763363201329,0.72167565,3193.1,3193.0,3.907e-05]
[1763363201534,1.49078271,3193.1,3193.0,0.14823907]
[1763363202430,0.72167565,3193.1,3193.0,0.38233907]
[1763363202739,0.7721806,3193.1,3193.0,0.14823907]
[1763363203133,0.7721806,3193.1,3193.0,0.38233907]
[1763363204438,1.49093342,3193.1,3193.0,0.14823907]
[1763363205938,0.72182636,3193.1,3193.0,0.38233907]
[1763363206134,0.00307354,3193.1,3193.0,0.38233907]
[1763363207041,0.00307354,3193.1,3193.0,1.15144613]
[1763363207741,0.00307354,3193.1,3193.0,0.38233907]
[1763363209142,0.7226843,3193.1,3193.0,0.38233907]
[1763363209339,0.00307354,3193.1,3193.0,0.38233907]
[1763363209844,0.0046977,3193.4,3193.3,0.2252]
[1763363210841,0.00706051,3193.4,3193.3,0.2252]
[1763363212436,0.51476051,3193.4,3193.2,3.2078]
[1763363212835,1.28278633,3193.4,3193.2,3.2078]
[1763363213036,1.28278633,3193.4,3193.0,40.94823907]
[1763363213037,0.50774,3193.2,3193.0,0.14823907]
[1763363213944,0.72042528,3193.1,3193.0,0.14823907]
[1763363215444,0.72042528,3193.1,3193.0,0.37343907]
[1763363218045,0.72042528,3193.1,3193.0,0.14823907]
[1763363218949,0.72042528,3193.1,3193.0,0.37343907]
[1763363220548,0.00706051,3193.4,3193.3,0.2252]
[1763363220753,0.72869799,3193.4,3193.3,0.2252]
[1763363220953,0.72869799,3193.4,3193.3,0.99322582]
[1763363221248,0.00706051,3193.4,3193.3,0.99322582]
[1763363224076,1.12597298,3194.2,3193.6,0.2252]
[1763363224255,11.64459792,3194.3,3194.2,0.2252]
[1763363225071,11.64821056,3194.3,3194.2,0.2252]
[1763363226466,0.00361264,3194.3,3194.2,0.2252]
[1763363227664,0.00361264,3194.3,3194.2,3.433]
[1763363228560,1.12597298,3195.0,3194.5,0.3679]
[1763363228767,3.2078,3195.2,3195.0,0.1427]
[1763363228968,0.50743,3195.1,3195.0,0.3679]
[1763363229173,3.2078,3195.2,3195.0,0.3679]
[1763363229671,3.71823108,3195.2,3195.0,0.3679]
[1763363230067,3.71823108,3195.2,3195.0,0.1427]
[1763363232964,3.21081108,3195.2,3195.1,0.2252]
[1763363233176,0.00301108,3195.2,3195.1,0.2252]
[1763363233472,0.00301108,3195.2,3195.1,0.99322582]
[1763363235872,15.36412807,3196.0,3195.9,0.2252]
[1763363236063,12.15632807,3196.0,3195.9,0.2252]
[1763363236564,12.15632807,3196.0,3195.5,0.91072582]
[1763363237071,12.15965758,3196.0,3195.9,0.2252]
[1763363238473,0.00332951,3196.0,3195.9,0.2252]
[1763363238673,0.0046977,3196.1,3196.0,0.3654]
[1763363238870,0.50718,3196.7,3196.0,0.1384]
[1763363239071,0.50718,3196.7,3196.6,0.227]
[1763363239573,0.5098391,3196.7,3196.6,0.227]
[1763363240274,0.0026591,3196.7,3196.6,0.227]
[1763363245780,0.77068492,3196.7,3196.6,0.227]
[1763363245985,0.50719,3196.6,3196.5,0.1384]
[1763363246982,0.50719,3196.6,3196.5,0.3654]
[1763363247280,0.0026591,3196.7,3196.6,0.227]
[1763363248770,0.0026591,3196.7,3196.6,0.99502582]
[1763363249887,0.0026591,3196.7,3196.6,0.227]
[1763363256190,0.71536303,3196.7,3196.6,0.227]
[1763363260083,0.0026591,3196.7,3196.6,0.227]
[1763363260488,0.71661379,3196.7,3196.6,0.227]
[1763363261991,0.0026591,3196.7,3196.6,0.227]
[1763363263088,0.71661379,3196.7,3196.6,0.227]
[1763363263299,0.00310685,3197.0,3196.9,0.227]
[1763363263486,1.12597298,3197.6,3197.5,0.3654]
[1763363263687,3.2078,3197.9,3197.7,0.227]
[1763363263688,1.63297298,3197.8,3197.7,0.227]
[1763363263983,0.507,3197.8,3197.7,0.227]
[1763363264185,0.51043392,3197.8,3197.7,0.227]
[1763363264388,12.70035054,3198.2,3197.9,0.227]
[1763363264590,11.36522958,3198.2,3198.1,4.20282582]
[1763363264898,3.2424,3198.7,3198.6,0.227]
[1763363265395,0.03819069,3198.7,3198.6,0.22998322]
[1763363266290,3.2078,3199.2,3199.1,0.227]
[1763363267294,1.68880317,3200.2,3200.1,0.227]
[1763363267487,2.19531317,3200.9,3200.5,0.1384]
[1763363267697,4.89660317,3201.0,3200.5,0.1384]
[1763363267900,5.66462899,3201.0,3200.9,0.227]
[1763363268094,3.2078,3201.0,3200.9,0.227]
[1763363268496,3.21174543,3201.0,3200.9,0.22976686]
[1763363268708,0.00394543,3201.0,3200.9,3.43756686]
[1763363269309,1.881652,3202.4,3202.0,0.4053]
[1763363269606,12.0,3204.1,3203.6,3.2078]
[1763363269787,0.1491,3206.0,3201.9,0.00469021]
[1763363269788,3.15352228,3205.0,3203.7,44.0078]
[1763363269989,0.1491,3204.6,3202.0,0.24809579]
[1763363270318,1.209,3204.5,3204.0,0.00468282]
[1763363270501,0.245,3203.8,3203.7,0.79040784]
[1763363270707,0.245,3203.8,3203.7,3.53237575]
[1763363270995,0.1491,3202.8,3202.6,3.2078]
[1763363271492,4.0771,3202.8,3202.6,3.2078]
[1763363271688,5.22175702,3202.8,3202.4,0.00468282]
[1763363271992,0.245,3202.1,3202.0,0.00246624]
[1763363272200,0.245,3202.1,3200.9,1.35524564]
[1763363272201,0.245,3201.8,3201.7,3.2078]
[1763363272392,0.1491,3201.6,3201.3,3.2078]
[1763363272587,2.538,3201.5,3201.3,3.2078]
[1763363272793,0.1491,3201.1,3200.9,3.2078]
[1763363273194,0.1491,3201.1,3200.9,3.21028422]
[1763363273902,7.9781,3201.1,3200.9,3.21028422]
[1763363274102,0.1491,3201.1,3200.9,3.21028422]
[1763363274293,0.1491,3201.6,3200.9,3.21028422]
[1763363274605,0.1491,3201.6,3201.5,3.2078]
[1763363275103,0.3941,3201.6,3201.5,3.2078]
[1763363275594,0.3941,3201.6,3201.1,3.2078]
[1763363276006,0.245,3201.2,3201.1,3.2078]
[1763363276499,0.1491,3201.6,3201.1,3.2078]
[1763363276710,0.1491,3201.6,3201.5,3.2078]
[1763363277194,0.00463319,3201.9,3201.5,4.35245702]
[1763363277588,0.1491,3201.8,3201.5,3.2078]
[1763363277800,0.245,3201.6,3201.5,3.2078]
[1763363279300,1.38965702,3201.6,3201.5,3.2078]
[1763363280203,0.245,3201.2,3201.1,3.2078]
[1763363280699,0.0093743,3201.5,3201.1,3.2078]
[1763363281002,2.515,3201.4,3201.1,3.2078]
[1763363281201,0.245,3201.2,3201.1,3.2078]
[1763363281596,0.3941,3201.0,3200.9,0.00248422]
[1763363282106,1.53875702,3201.0,3200.9,0.00248422]
[1763363282307,0.245,3200.8,3200.7,3.21248282]
[1763363282601,1.29375702,3201.0,3199.7,3.2078]
[1763363282602,0.1491,3199.8,3199.7,3.2078]
[1763363282906,0.1491,3199.8,3199.3,3.2078]
[1763363283205,0.152994,3199.8,3199.3,3.2114301]
[1763363284304,0.152994,3199.8,3199.7,3.2078]
[1763363285597,0.397994,3199.8,3199.7,3.2078]
[1763363285803,0.397994,3199.8,3199.3,3.2114301]
[1763363286191,0.152994,3199.8,3199.4,1.96404051]
[1763363286394,1.14465702,3202.0,3199.4,1.96404051]
[1763363286395,3.2078,3200.6,3199.7,5.49711404]
[1763363286600,3.3569,3201.0,3200.5,1.14465702]
[1763363286800,3.3569,3201.0,3200.2,4.35245702]
[1763363287000,3.3569,3201.0,3200.3,0.81962389]
[1763363287200,3.3569,3201.0,3200.4,0.82021106]
[1763363287505,3.36444966,3201.0,3200.2,4.35245702]
[1763363287805,0.1491,3200.4,3200.3,0.82022148]
[1763363288605,0.1491,3200.4,3200.2,3.2078]
[1763363288812,0.245,3200.3,3199.8,3.2078]
[1763363289007,0.245,3200.0,3199.9,0.82143336]
[1763363289508,0.75165,3200.0,3199.3,3.2114301]
[1763363289810,0.1491,3199.7,3199.4,0.82283178]
[1763363290003,0.1491,3199.7,3199.5,0.82283178]
[1763363290206,0.1491,3199.7,3199.6,0.82376787]
[1763363290710,0.3941,3199.7,3199.6,0.82376787]
[1763363292406,4.1086,3199.7,3199.6,0.82376787]
[1763363293112,0.245,3199.4,3199.3,0.0036301]
[1763363294115,0.75176,3199.3,3199.2,0.00468282]
[1763363294316,5.10421702,3199.3,3199.2,0.00468282]
[1763363294711,5.10421702,3199.3,3198.9,1.10242586]
[1763363294712,0.50681,3199.0,3198.9,1.10242586]
[1763363294912,0.50681,3199.0,3198.4,3.2078]
[1763363294913,0.75186,3198.7,3198.6,1.10242586]
[1763363295213,0.24904701,3198.7,3198.6,1.10883319]
[1763363296109,0.00404701,3198.7,3198.6,1.10883319]
[1763363296313,0.24904701,3198.7,3198.6,1.10883319]
[1763363297421,3.2078,3199.8,3198.6,2.25909819]
[1763363297715,3.2078,3199.8,3199.2,4.31231153]
[1763363298309,0.15299367,3199.7,3199.2,4.31231153]
[1763363298717,0.7148,3199.2,3199.1,1.10451153]
[1763363299219,1.2002,3199.1,3199.0,1.10451153]
[1763363299428,1.2002,3197.8,3197.7,1.55344702]
[1763363299625,1.2002,3197.8,3196.8,0.6048]
[1763363299626,0.50704,3197.6,3196.9,3.2078]
[1763363299812,0.50703,3197.7,3196.9,3.2078]
[1763363300122,0.50706,3197.5,3196.9,3.2078]
[1763363300308,0.50709,3197.2,3196.9,3.21177229]
[1763363300517,0.50709,3197.2,3196.9,0.00397229]
[1763363300715,0.51028573,3197.2,3196.9,0.00397229]
[1763363301017,0.50712,3197.1,3196.9,0.00397229]
[1763363301214,1.2002,3197.0,3196.9,0.00397229]
[1763363303223,0.00319573,3197.2,3196.9,0.00397229]
[1763363303424,0.51029573,3197.2,3196.9,0.00397229]
[1763363303720,0.50713,3197.0,3196.9,0.00397229]
[1763363304125,0.51029573,3197.2,3196.9,0.00397229]
[1763363304522,0.00319573,3197.2,3197.1,1.1642]
[1763363305019,0.00319573,3197.2,3197.1,7.1642]
[1763363305211,3.2078,3198.0,3197.3,1.1642]
[1763363305414,3.2078,3198.0,3196.9,0.72657229]
[1763363305415,3.2078,3198.0,3197.5,3.2078]
[1763363306021,3.2078,3198.0,3197.6,0.8876]
[1763363306926,3.71478,3198.0,3197.6,0.8876]
[1763363307123,0.50701,3197.8,3197.6,0.8876]
[1763363307328,3.2078,3198.0,3197.6,0.8876]
[1763363308422,3.71478,3198.0,3197.6,0.8876]
[1763363308625,3.9226,3198.0,3197.6,0.8876]
[1763363310228,3.92655887,3198.0,3197.6,0.8876]
[1763363310425,0.00465182,3198.1,3198.0,0.87]
[1763363310739,0.50677,3199.3,3198.0,0.87]
[1763363310740,3.2078,3200.2,3199.3,0.8614]
[1763363310940,1.7069,3199.7,3198.8,3.2078]
[1763363311621,1.2002,3199.7,3198.8,4.35245702]
[1763363311820,3.9226,3199.8,3198.8,4.35245702]
[1763363312030,3.9253788,3199.8,3198.9,0.0046908]
[1763363312229,4.4320688,3199.8,3198.9,0.0046908]
[1763363312423,0.5067,3199.7,3198.9,0.0046908]
[1763363312620,3.9253788,3199.8,3198.9,0.0046908]
[1763363312826,0.50677,3199.3,3198.9,0.0046908]
[1763363313130,1.14465702,3199.6,3198.9,0.0046908]
[1763363313331,0.7148,3199.0,3198.9,0.0046908]
[1763363313920,1.915,3199.0,3198.9,0.0046908]
[1763363315229,4.35245702,3199.3,3198.9,3.2124908]
[1763363315230,3.71457,3199.3,3198.9,3.2124908]
[1763363316035,0.5067,3199.7,3198.9,3.2124908]
[1763363316232,3.9253788,3199.8,3199.3,3.2078]
[1763363316537,5.07003582,3199.8,3199.3,3.2078]
[1763363316736,0.0027788,3199.8,3199.3,3.2078]
[1763363316932,0.7175788,3199.8,3199.3,3.2078]
[1763363317235,0.50674,3199.5,3199.3,3.2078]
[1763363317630,1.2002,3199.0,3198.9,3.2124908]
[1763363317822,1.2002,3199.0,3198.9,0.0046908]
[1763363318328,5.06725702,3199.2,3198.9,0.0046908]
[1763363318329,0.0027788,3199.8,3199.7,0.8614]
[1763363318527,0.7175788,3199.8,3199.7,3.2078]
[1763363318727,1.2002,3199.4,3199.3,3.2078]
[1763363318929,1.2002,3199.4,3198.9,3.2124908]
[1763363319227,0.7175788,3199.8,3199.3,3.2078]
[1763363319829,1.2242688,3199.8,3199.3,3.2078]
[1763363320427,0.5067,3199.7,3199.3,3.2078]
[1763363320625,1.2002,3199.4,3199.3,3.2078]
[1763363320831,0.50674,3199.5,3198.9,0.0046908]